bitfinex/quotes_ETHUSD_20250214
["timestamp","ask_amount","ask_price","bid_price","bid_amount"]
[1739562960610,0.7595,2733.7,2733.2,0.0365824]
[1739562960953,3.65832,2733.5,2733.1,0.36589]
[1739562961259,3.65832,2733.5,2732.8,3.65918]
[1739562961637,3.65819,2733.6,2733.0,3.65897]
[1739562962162,3.65819,2733.6,2732.8,3.65918]
[1739562962450,3.65843,2733.5,2732.8,3.65918]
[1739562962615,3.65843,2733.5,2732.9,0.365918]
[1739562963060,3.6585,2733.4,2732.9,0.365918]
[1739562963355,3.65844,2733.4,2732.9,0.365918]
[1739562964366,3.65844,2733.4,2733.3,35.0]
[1739562965370,4.41724,2734.0,2733.3,35.0]
[1739562965569,4.41724,2734.0,2733.4,3.69499965]
[1739562965857,3.65748,2734.2,2733.6,3.65817]
[1739562966010,3.65748,2734.2,2734.1,35.0]
[1739562967264,4.98938,2734.2,2734.1,35.0]
[1739562967563,7.98938,2734.2,2734.1,35.0]
[1739562967746,4.44042,2733.4,2732.7,3.84031482]
[1739562968114,4.44042,2733.4,2733.2,35.0]
[1739562968962,3.65879,2733.2,2732.5,0.39804479]
[1739562969595,3.65879,2733.2,2733.1,35.0]
[1739562970650,4.20879,2733.2,2733.1,35.0]
[1739562970845,4.99069,2733.2,2733.1,35.0]
[1739562972149,4.44069,2733.2,2733.1,35.0]
[1739562973045,4.99069,2733.2,2733.1,35.0]
[1739562978391,4.99069,2733.2,2731.4,3.66109]
[1739562978392,0.7819,2732.9,2731.4,3.09986827]
[1739562978559,3.66009,2732.2,2731.6,3.94276]
[1739562978759,3.66001,2732.3,2731.7,0.760375]
[1739562979068,3.66001,2732.3,2731.7,4.421085]
[1739562979265,3.66017,2732.2,2731.7,0.760375]
[1739562979616,3.66017,2732.2,2731.4,6.76097827]
[1739562979617,3.66013,2732.2,2731.4,6.76097827]
[1739562979833,3.66013,2732.2,2732.1,35.0]
[1739562980206,3.65993,2732.3,2732.1,35.0]
[1739562980405,3.65993,2732.3,2731.7,3.66063]
[1739562980597,3.65979,2732.4,2731.8,3.66056]
[1739562980794,3.65979,2732.4,2732.3,35.0]
[1739562981309,3.65978,2732.4,2732.3,35.0]
[1739562981508,0.7819,2732.7,2732.3,35.0]
[1739562981509,3.65952,2732.6,2732.3,35.0]
[1739562981803,3.65974,2732.5,2731.9,4.392499]
[1739562982012,3.65974,2732.5,2731.9,3.66038]
[1739562982220,3.65952,2732.6,2732.4,35.0]
[1739562982742,3.65952,2732.6,2731.9,7.32076]
[1739562982948,3.65952,2732.6,2732.0,0.732076]
[1739562983148,3.65952,2732.6,2732.5,35.0]
[1739562983353,0.7819,2732.7,2732.5,35.0]
[1739562983515,0.7819,2732.7,2732.1,3.66011]
[1739562983710,3.84663814,2733.2,2732.0,0.732076]
[1739562983711,4.44714,2733.0,2732.2,0.03659558]
[1739562984014,4.4469,2733.2,2732.9,35.0]
[1739562984224,0.7881,2733.2,2732.9,35.0]
[1739562984423,3.65852,2733.4,2732.7,3.65928]
[1739562984653,3.65852,2733.4,2732.8,0.4025152]
[1739562984863,3.65851,2733.4,2733.3,35.0]
[1739562985750,3.65832,2733.5,2733.3,35.0]
[1739562986051,3.65832,2733.5,2732.8,0.365928]
[1739562986212,3.65852,2733.4,2732.9,0.4025208]
[1739562986419,3.65852,2733.4,2733.3,35.0]
[1739562987252,3.65832,2733.5,2733.3,35.0]
[1739562987460,3.65832,2733.5,2732.9,0.4025208]
[1739562987642,3.65812,2733.7,2733.0,3.65896]
[1739562987964,3.65825,2733.6,2733.1,0.40614808]
[1739562988318,0.7881,2733.8,2733.5,35.0]
[1739562988523,3.65757,2734.1,2733.5,35.0]
[1739562988764,3.65757,2734.1,2733.4,3.65836]
[1739562988765,3.65769,2734.0,2733.4,3.65844]
[1739562988932,3.65769,2734.0,2733.5,0.731696]
[1739562989136,3.65778,2733.9,2733.5,0.731696]
[1739562989349,3.65778,2733.9,2733.8,35.0]
[1739562989640,3.65766,2734.0,2733.8,35.0]
[1739562989834,3.65766,2734.0,2733.5,0.731696]
[1739562990052,3.65779,2733.9,2733.5,0.731696]
[1739562990250,3.65779,2733.9,2733.8,35.0]
[1739562991096,3.65757,2734.1,2733.8,35.0]
[1739562991233,3.65757,2734.1,2733.5,0.731696]
[1739562991583,3.65757,2734.1,2733.6,0.03657677]
[1739562991759,3.65757,2734.1,2734.0,35.0]
[1739562994140,11.13363827,2734.1,2734.0,35.0]
[1739562994573,11.13363827,2734.1,2732.6,3.09986827]
[1739562994574,4.48413,2733.8,2732.5,3.65955]
[1739562994885,3.65901,2733.0,2732.5,3.65962]
[1739562995067,3.65901,2733.0,2732.3,7.22523243]
[1739562995247,3.65901,2733.0,2732.5,3.65957]
[1739562995248,3.65898,2733.0,2732.5,3.65957]
[1739562995651,3.65898,2733.0,2732.9,35.0]
[1739562996249,3.65885,2733.1,2732.9,35.0]
[1739562996582,3.65875,2733.2,2732.9,35.0]
[1739562996881,3.65898,2733.0,2732.4,4.38219324]
[1739562997178,3.65883,2733.2,2732.9,35.0]
[1739562997334,3.65894,2733.1,2732.9,35.0]
[1739562997538,3.65883,2733.2,2732.5,1.14229215]
[1739562997773,3.65883,2733.2,2732.4,0.72252324]
[1739562997774,3.65898,2733.0,2732.4,4.38228324]
[1739562998137,3.65898,2733.0,2732.9,35.0]
[1739562999771,3.65889,2733.1,2732.9,35.0]
[1739562999962,3.65899,2733.0,2732.5,3.65963]
[1739563000164,3.65899,2733.0,2732.6,0.43821532]
[1739563000534,3.65886,2733.1,2732.6,4.09765532]
[1739563000735,4.48486,2733.3,2732.7,3.6593]
[1739563000959,3.65836,2733.5,2732.8,3.65915]
[1739563001166,3.65836,2733.5,2733.0,3.65891]
[1739563001554,3.65808,2733.7,2733.1,3.65884]
[1739563001555,3.65811,2733.7,2733.1,3.65884]
[1739563002177,3.65792,2733.8,2733.2,3.65864]
[1739563002481,3.65809,2733.7,2733.2,3.65864]
[1739563002648,3.65809,2733.7,2733.3,0.365864]
[1739563002849,7.31623,2733.7,2733.3,0.365864]
[1739563003175,3.65809,2733.7,2733.3,0.365864]
[1739563003382,7.31621,2733.7,2733.3,0.365864]
[1739563003678,3.65809,2733.7,2733.3,0.365864]
[1739563004581,3.65817,2733.6,2733.3,0.365864]
[1739563004780,3.65817,2733.6,2733.0,7.31785]
[1739563004986,3.65822,2733.6,2733.1,3.65873]
[1739563005169,0.7845,2733.6,2732.7,3.65932]
[1739563005372,4.44268,2733.6,2732.9,3.65905]
[1739563005581,4.44268,2733.6,2732.9,4.38234328]
[1739563005582,3.6585,2733.4,2732.9,4.38234328]
[1739563005794,4.44268,2733.6,2733.1,3.65877]
[1739563005795,3.65818,2733.6,2733.1,3.65877]
[1739563005959,7.31649,2733.6,2733.0,3.65887]
[1739563006163,3.65832,2733.5,2733.0,3.65887]
[1739563006364,3.65832,2733.5,2733.1,0.4345577]
[1739563006565,3.65818,2733.6,2733.1,0.4345577]
[1739563006800,7.31648,2733.6,2733.1,0.4345577]
[1739563006975,3.65818,2733.6,2733.1,0.4345577]
[1739563007173,3.65818,2733.6,2733.1,4.0933177]
[1739563007378,3.65818,2733.6,2733.2,0.77521877]
[1739563007777,4.44246,2733.8,2733.3,0.03658246]
[1739563007965,3.65817,2733.7,2733.2,0.77521877]
[1739563008164,3.65818,2733.6,2733.2,0.77521877]
[1739563008800,3.65804,2733.7,2733.2,4.43391877]
[1739563009875,3.65804,2733.7,2733.3,0.48684765]
[1739563010077,6.65728,2734.3,2733.3,0.48684765]
[1739563010078,3.65785,2733.9,2733.4,3.65838]
[1739563010697,4.4631,2734.1,2733.3,0.48684765]
[1739563010698,0.8055,2734.1,2733.3,0.48684765]
[1739563010883,3.65752,2734.1,2733.6,3.65805]
[1739563011077,3.65733,2734.3,2733.8,3.65791]
[1739563011283,4.46262,2734.4,2733.9,3.6577]
[1739563011603,3.65731,2734.3,2733.8,4.39316364]
[1739563011970,3.65731,2734.3,2733.8,8.05099364]
[1739563012278,3.65731,2734.3,2733.8,4.39308364]
[1739563012796,3.65707,2734.5,2733.8,4.39308364]
[1739563013008,3.65717,2734.4,2733.9,3.65775]
[1739563013302,3.65707,2734.5,2733.6,0.03657337]
[1739563013507,3.65725,2734.3,2733.8,6.75777827]
[1739563013720,3.65724,2734.3,2733.5,11.13720716]
[1739563013907,3.65774,2734.0,2733.4,3.65839]
[1739563014078,3.65774,2734.0,2733.5,3.65824]
[1739563014505,3.65746,2734.2,2733.5,3.65824]
[1739563014678,3.6576,2734.1,2733.5,3.65824]
[1739563015978,3.65746,2734.2,2733.6,3.65817]
[1739563016181,3.65746,2734.2,2733.7,3.69449537]
[1739563016916,3.65719,2734.4,2733.9,3.65769]
[1739563017518,7.31388,2734.6,2734.0,3.65762]
[1739563017703,3.0,2734.5,2734.0,3.65762]
[1739563018025,3.0,2734.5,2734.0,3.65759]
[1739563018182,6.65705,2734.5,2733.9,3.65768]
[1739563018906,3.65718,2734.4,2733.9,3.65768]
[1739563019883,3.65718,2734.4,2733.9,7.31538]
[1739563020184,6.65697,2734.5,2734.0,3.65762]
[1739563021131,3.65712,2734.4,2733.9,7.31538]
[1739563021296,3.65712,2734.4,2733.9,3.65768]
[1739563021691,3.65712,2734.4,2733.9,3.65777]
[1739563021692,3.6571,2734.4,2733.9,3.65777]
[1739563022307,7.31385,2734.6,2734.1,3.65743]
[1739563022796,3.65708,2734.5,2733.9,4.389271]
[1739563023109,3.65684,2734.6,2734.0,3.65751]
[1739563023310,3.65684,2734.6,2734.2,3.65737]
[1739563023697,4.43361,2734.7,2734.2,3.65728]
[1739563024009,4.43361,2734.7,2734.1,0.4389081]
[1739563024209,4.43361,2734.7,2734.1,4.0962981]
[1739563024406,3.65722,2734.4,2733.9,4.389301]
[1739563024608,3.65722,2734.4,2733.9,7.31542]
[1739563024796,3.65705,2734.5,2734.0,3.65758]
[1739563025523,0.7769,2734.7,2733.8,6.75773827]
[1739563025695,0.7769,2734.7,2734.2,3.65725]
[1739563025696,4.43361,2734.7,2734.2,3.65725]
[1739563026347,4.43361,2734.7,2734.2,3.65737]
[1739563026639,4.43361,2734.7,2734.3,3.65724]
[1739563026810,3.65671,2734.7,2734.3,3.65724]
[1739563028556,8.0899,2734.9,2734.3,8.045865]
[1739563028759,0.7769,2734.9,2734.1,3.65742]
[1739563029039,0.7769,2734.9,2734.0,3.65751]
[1739563029212,4.4334,2734.9,2734.4,3.65702]
[1739563029402,3.65659,2734.8,2734.4,3.65702]
[1739563029603,7.31326,2734.8,2734.1,3.6575]
[1739563029941,0.7769,2734.9,2734.4,3.65709]
[1739563030139,4.4334,2734.9,2734.4,3.65709]
[1739563030330,4.4334,2734.9,2734.5,3.65693]
[1739563030524,4.4334,2734.9,2734.4,3.65709]
[1739563030739,4.4334,2734.9,2734.3,3.65724]
[1739563030918,4.4334,2734.9,2734.3,4.059543]
[1739563031241,4.4334,2734.9,2734.4,3.65703]
[1739563031448,0.7769,2734.9,2734.5,3.65693]
[1739563034051,3.65651,2734.9,2734.4,3.65709]
[1739563034550,3.65695,2734.6,2734.0,0.277]
[1739563034936,3.65695,2734.6,2734.1,3.65751]
[1739563035141,3.65695,2734.6,2734.2,3.65736]
[1739563035444,3.65671,2734.7,2734.2,7.31465]
[1739563035628,3.65658,2734.8,2734.2,3.65729]
[1739563035840,3.65685,2734.6,2734.2,3.65729]
[1739563036832,3.65658,2734.8,2734.2,3.65729]
[1739563037037,3.65671,2734.7,2734.2,3.65729]
[1739563037242,3.65671,2734.7,2734.2,4.416474]
[1739563038629,3.65671,2734.7,2734.2,4.317274]
[1739563038825,3.65658,2734.8,2734.3,7.31439]
[1739563039051,3.65658,2734.8,2734.3,3.65715]
[1739563040056,3.65658,2734.8,2734.3,7.3143]
[1739563040218,7.31325,2734.8,2734.3,3.65715]
[1739563040419,3.65658,2734.8,2734.3,3.65715]
[1739563040619,3.65658,2734.8,2734.4,3.65706]
[1739563040820,3.65651,2734.9,2734.4,3.65706]
[1739563041012,3.65659,2734.8,2734.4,3.65704]
[1739563041215,3.6565,2734.9,2734.4,8.1214284]
[1739563041450,3.65638,2735.0,2734.5,3.65691]
[1739563042045,0.55,2735.3,2734.5,3.65691]
[1739563042264,3.65646,2734.9,2734.5,3.65691]
[1739563042577,0.55,2735.3,2734.5,3.65685]
[1739563042578,3.6563,2735.1,2734.5,3.65685]
[1739563042715,7.31219,2735.2,2734.5,0.65838624]
[1739563042914,5.39,2735.6,2734.6,3.65679]
[1739563043135,3.6561,2735.2,2734.7,3.65669]
[1739563043471,3.65596,2735.3,2734.8,3.65653]
[1739563044565,3.65596,2735.3,2734.7,3.65669]
[1739563044889,3.65596,2735.3,2734.8,3.65645]
[1739563045174,3.65596,2735.3,2734.8,4.387758]
[1739563046123,3.65596,2735.3,2734.9,3.65642]
[1739563046323,3.65577,2735.4,2734.9,3.65642]
[1739563046525,3.656,2735.3,2734.8,4.387798]
[1739563047579,3.656,2735.3,2734.9,3.65643]
[1739563047784,3.65566,2735.5,2735.1,3.65614]
[1739563048332,3.65511,2735.9,2735.2,3.65597]
[1739563048537,3.6553,2735.8,2735.3,3.6559]
[1739563048782,3.65537,2735.7,2735.3,3.6559]
[1739563049087,3.65494,2736.1,2735.4,3.65565]
[1739563049247,3.65494,2736.1,2735.6,3.65545]
[1739563049436,3.09986827,2736.6,2735.6,3.65545]
[1739563049631,3.6549,2736.1,2735.6,3.65545]
[1739563050471,3.65506,2736.0,2735.4,3.69226076]
[1739563050674,3.65526,2735.8,2735.4,3.65571]
[1739563050882,3.65503,2736.0,2735.4,3.65571]
[1739563051268,3.65516,2735.9,2735.4,3.65571]
[1739563051464,3.65503,2736.0,2735.6,3.65548]
[1739563051963,3.65479,2736.2,2735.6,3.65548]
[1739563052147,3.65485,2736.1,2735.6,3.65548]
[1739563052349,3.655,2736.0,2735.6,3.65548]
[1739563052594,3.65491,2736.1,2735.6,3.65548]
[1739563052942,3.65497,2736.0,2735.6,3.65548]
[1739563053344,3.65479,2736.2,2735.7,3.65527]
[1739563053871,3.65464,2736.3,2735.8,3.69171746]
[1739563054188,3.65458,2736.3,2735.8,3.65517]
[1739563054799,3.65453,2736.4,2735.9,3.65505]
[1739563055028,3.65453,2736.4,2736.0,0.03654584]
[1739563055175,3.65426,2736.6,2736.0,4.38957558]
[1739563055526,3.65431,2736.5,2736.1,3.65483]
[1739563055726,3.65431,2736.5,2736.0,0.73467558]
[1739563055868,3.65431,2736.5,2736.0,3.65489]
[1739563056077,3.65466,2736.3,2735.7,3.65529]
[1739563056319,3.65466,2736.3,2735.8,3.65522]
[1739563056788,3.65454,2736.4,2735.8,3.65522]
[1739563057174,3.65454,2736.4,2735.8,3.65513]
[1739563057375,3.65454,2736.4,2735.9,4.386132]
[1739563058103,3.65466,2736.3,2735.9,0.731042]
[1739563058831,7.30905,2736.4,2735.9,0.731042]
[1739563058981,3.65451,2736.4,2735.9,4.386132]
[1739563059539,3.65396,2736.8,2736.0,0.03654412]
[1739563059688,3.65428,2736.6,2736.1,3.65476]
[1739563059892,3.65451,2736.4,2735.9,6.75488827]
[1739563060500,3.65451,2736.4,2736.0,3.65494]
[1739563061281,3.65451,2736.4,2735.9,6.75494827]
[1739563061494,3.65451,2736.4,2736.0,1.06860783]
[1739563061695,3.65376,2736.9,2735.6,3.9315]
[1739563061696,3.655,2736.0,2735.6,3.9315]
[1739563061926,3.64986827,2736.9,2735.6,3.9315]
[1739563061927,3.65484,2736.1,2735.6,3.9315]
[1739563062130,3.65484,2736.1,2735.6,8.10060126]
[1739563062283,3.65459,2736.3,2735.7,3.65535]
[1739563062486,3.65472,2736.2,2735.7,3.65525]
[1739563062690,3.65472,2736.2,2735.8,3.65523]
[1739563062933,3.65472,2736.2,2735.6,7.54496953]
[1739563063229,3.65472,2736.2,2735.7,4.48450097]
[1739563063638,0.8048,2736.1,2735.7,4.48450097]
[1739563063998,0.8048,2736.1,2735.6,0.51367126]
[1739563064202,0.8048,2735.8,2735.6,0.51367126]
[1739563064421,3.65544,2735.7,2735.2,3.93196]
[1739563064615,0.8048,2735.6,2735.2,3.93196]
[1739563064809,0.8048,2735.6,2735.3,0.393196]
[1739563067123,3.65524,2735.8,2735.4,3.65576]
[1739563067349,4.45991,2735.9,2735.4,3.65576]
[1739563068022,3.65523,2735.8,2735.3,7.14896427]
[1739563068228,0.8048,2735.7,2735.3,7.14896427]
[1739563068437,0.8048,2735.7,2735.4,1.08049143]
[1739563069246,4.46017,2735.7,2735.4,1.08049143]
[1739563069403,0.8048,2735.7,2735.4,4.73625143]
[1739563069755,0.8048,2735.7,2735.4,1.08049143]
[1739563070535,0.8048,2735.7,2735.5,5.0]
[1739563070749,0.8048,2735.7,2735.6,0.97362014]
[1739563070961,0.8048,2735.7,2735.5,7.24204]
[1739563071259,0.9544,2736.0,2735.6,3.2084]
[1739563071409,0.9544,2736.0,2735.8,3.6552]
[1739563071609,0.9544,2736.0,2735.7,3.65532]
[1739563072661,0.9544,2736.0,2735.6,6.75535827]
[1739563072957,0.9544,2736.0,2735.7,0.67553583]
[1739563073524,4.60937,2736.0,2735.7,0.67553583]
[1739563073743,3.65516,2735.9,2735.5,3.276]
[1739563073905,0.8284,2735.8,2735.5,3.276]
[1739563074204,0.8284,2735.8,2735.6,2.83]
[1739563074405,0.8284,2735.8,2735.6,5.0]
[1739563074608,0.8284,2735.8,2735.7,1.193151]
[1739563074947,0.8284,2735.8,2735.7,4.225721]
[1739563075263,0.8284,2735.8,2735.7,1.193151]
[1739563075858,0.978,2736.0,2735.7,1.193151]
[1739563077223,4.63298,2736.0,2735.7,1.193151]
[1739563078053,0.978,2736.0,2735.8,0.4848621]
[1739563078348,0.978,2736.0,2735.8,4.5960521]
[1739563078520,0.978,2736.0,2735.9,4.08119]
[1739563078722,0.978,2736.0,2735.9,3.49137]
[1739563078941,0.978,2736.0,2735.9,4.37384331]
[1739563080315,0.1496,2736.0,2735.9,4.37384331]
[1739563080522,0.1496,2736.0,2735.9,14.16535667]
[1739563080755,0.1496,2736.0,2735.9,14.12881158]
[1739563080922,0.1496,2736.0,2735.9,26.90981158]
[1739563083449,0.8284,2737.0,2736.6,3.65413]
[1739563083658,0.8284,2737.2,2736.7,12.39527127]
[1739563083879,4.48176,2737.2,2736.7,7.02980827]
[1739563084081,4.48176,2737.2,2736.8,0.03653227]
[1739563084287,4.48176,2737.2,2737.1,35.0]
[1739563084744,0.8284,2737.2,2737.1,40.0]
[1739563084948,0.83333333,2737.3,2737.1,35.0]
[1739563085160,0.83333333,2737.3,2737.0,3.09986827]
[1739563085414,0.83333333,2737.3,2737.1,0.74601823]
[1739563085577,0.83333333,2737.3,2737.2,35.0]
[1739563085777,0.83333333,2737.3,2737.2,39.89043]
[1739563086004,0.83333333,2737.3,2737.2,37.08331]
[1739563086306,0.83333333,2737.3,2737.2,38.60841]
[1739563086499,0.83333333,2737.3,2737.2,42.23317439]
[1739563086652,0.83333333,2737.3,2737.2,40.79699439]
[1739563087303,0.83333333,2737.3,2737.2,44.45035439]
[1739563087716,0.83333333,2737.3,2737.2,46.45035439]
[1739563089263,0.83333333,2737.3,2737.2,44.45035439]
[1739563089814,0.83333333,2737.3,2737.2,40.79699439]
[1739563090012,0.83333333,2737.3,2737.2,41.07299439]
[1739563090555,4.48656333,2737.3,2737.2,40.79699439]
[1739563090799,0.83333333,2737.3,2737.2,35.0]
[1739563091102,4.48656333,2737.3,2737.2,35.0]
[1739563091309,0.83333333,2737.3,2737.2,35.0]
[1739563091914,0.83333333,2737.3,2737.2,40.0]
[1739563092076,0.83333333,2737.3,2737.2,42.1707]
[1739563092410,0.83333333,2737.3,2737.2,45.79546439]
[1739563092709,0.83333333,2737.3,2737.2,48.79546439]
[1739563094209,0.83333333,2737.3,2737.2,41.62476439]
[1739563094711,0.83333333,2737.3,2737.2,46.62476439]
[1739563095819,0.83333333,2737.3,2737.2,50.27812439]
[1739563096196,0.83333333,2737.3,2737.2,41.62476439]
[1739563096520,0.83333333,2737.3,2737.2,50.27812439]
[1739563096898,0.83333333,2737.3,2737.2,46.62476439]
[1739563097093,0.83333333,2737.3,2737.2,45.85795439]
[1739563097414,0.83333333,2737.3,2737.2,50.27812439]
[1739563097967,0.83333333,2737.3,2737.2,48.04974439]
[1739563099418,0.83333333,2737.3,2737.2,47.63205439]
[1739563102147,0.83333333,2737.3,2737.2,40.97869439]
[1739563102301,1.64063333,2737.3,2737.2,38.62476439]
[1739563102497,1.64063333,2737.3,2737.2,42.00798439]
[1739563102932,0.83333333,2737.3,2737.2,45.66134439]
[1739563103641,0.83333333,2737.3,2737.2,42.00798439]
[1739563103998,0.83333333,2737.3,2737.2,38.62476439]
[1739563104336,0.83333333,2737.3,2737.2,47.27812439]
[1739563104534,0.83333333,2737.3,2737.2,46.22300439]
[1739563106039,5.29386333,2737.3,2737.2,35.0]
[1739563106347,1.64063333,2737.3,2737.2,38.65336]
[1739563106639,0.83333333,2737.3,2737.2,41.9561]
[1739563109227,0.83333333,2737.3,2737.2,40.98946]
[1739563109549,0.83333333,2737.3,2737.2,44.61422439]
[1739563109718,0.8114,2737.7,2737.2,44.61422439]
[1739563109923,0.8114,2737.7,2737.3,3.65316]
[1739563110221,0.8114,2737.7,2737.4,3.65308]
[1739563110416,0.8114,2737.7,2737.6,35.0]
[1739563111785,3.6527,2737.7,2737.6,35.0]
[1739563111935,4.4641,2737.7,2737.6,35.0]
[1739563112978,0.8114,2737.7,2737.6,35.0]
[1739563113687,0.8114,2737.7,2737.6,35.89268067]
[1739563113991,4.4641,2737.7,2737.6,35.0]
[1739563114154,0.8114,2737.7,2737.6,35.0]
[1739563115468,4.4641,2737.7,2737.6,35.0]
[1739563117494,5.0141,2737.7,2737.6,35.0]
[1739563117842,3.65356,2737.1,2736.5,3.65423]
[1739563118170,0.7658,2737.0,2736.5,3.65422]
[1739563118580,0.7658,2737.0,2736.7,3.65395]
[1739563118751,0.7658,2737.4,2736.9,35.0]
[1739563119069,0.7658,2737.4,2736.9,38.62476439]
[1739563119270,4.41891,2737.4,2736.9,3.62476439]
[1739563119473,0.7658,2737.3,2736.8,3.65384]
[1739563119679,0.7658,2737.3,2737.2,35.0]
[1739563120041,5.39,2737.8,2737.2,35.0]
[1739563120355,0.7658,2737.6,2737.2,3.65327]
[1739563120551,0.7658,2737.6,2737.4,3.65303]
[1739563120755,0.7658,2737.6,2737.5,35.0]
[1739563121171,0.7658,2737.8,2737.5,35.0]
[1739563121367,0.7658,2737.8,2737.2,4.43476]
[1739563121563,0.7658,2737.8,2737.2,5.18822283]
[1739563121772,4.41847,2737.8,2737.7,35.0]
[1739563122581,0.7658,2737.8,2737.7,35.0]
[1739563124765,0.7658,2737.8,2737.3,3.09986827]
[1739563124949,0.7658,2738.0,2737.5,3.65289]
[1739563125149,0.7658,2738.0,2737.6,4.096199]
[1739563125762,0.7658,2738.0,2737.9,35.0]
[1739563126563,0.7658,2738.0,2737.9,34.8992]
[1739563129997,4.4181,2738.0,2737.9,34.8992]
[1739563130406,4.9681,2738.0,2737.9,34.8992]
[1739563134008,0.8129,2737.9,2737.1,3.65349]
[1739563134199,3.65287,2737.6,2737.1,3.65349]
[1739563134496,0.8129,2737.5,2737.1,3.65349]
[1739563135098,0.8129,2737.5,2737.4,35.0]
[1739563137097,3.65287,2737.6,2737.4,35.0]
[1739563137302,3.65287,2737.6,2737.2,4.46015]
[1739563137503,3.65287,2737.6,2737.2,5.58151283]
[1739563137824,4.46554,2737.8,2737.5,35.0]
[1739563138029,3.65276,2737.7,2737.5,35.0]
[1739563138227,3.6527,2737.7,2737.3,3.65315]
[1739563138431,3.6527,2737.7,2737.2,5.61805276]
[1739563138632,3.6527,2737.7,2737.6,35.0]
[1739563143393,4.4656,2737.7,2737.6,35.0]
[1739563143626,5.0156,2737.7,2737.6,35.0]
[1739563146271,3.65326,2737.3,2736.8,7.30766]
[1739563146769,3.65326,2737.3,2737.2,35.0]
[1739563146971,3.65313,2737.4,2737.2,35.0]
[1739563147369,0.8129,2737.7,2737.2,3.65324]
[1739563147568,4.46567,2737.7,2737.2,3.65324]
[1739563147869,4.46567,2737.7,2737.6,35.0]
[1739563152158,3.65277,2737.7,2737.6,35.0]
[1739563153508,3.65258,2737.8,2737.6,35.0]
[1739563153673,3.65258,2737.8,2737.2,3.65328]
[1739563153674,3.65258,2737.8,2737.3,3.65321]
[1739563153860,3.65256,2737.8,2737.3,7.55984727]
[1739563154060,3.65256,2737.8,2737.7,35.0]
[1739563155394,4.20256,2737.8,2737.7,35.0]
[1739563155694,5.02986,2737.8,2737.7,35.0]
[1739563162701,8.02986,2737.8,2737.7,35.0]
[1739563168402,3.65376,2736.9,2736.8,0.7612]
[1739563169419,3.65369,2737.0,2736.8,35.7612]
[1739563169798,3.65369,2737.0,2736.8,0.7612]
[1739563170286,3.65369,2737.0,2736.9,35.0]
[1739563176213,3.65358,2737.1,2736.9,38.5]
[1739563176398,3.65286,2737.6,2736.9,38.5]
[1739563176399,3.65307,2737.5,2737.0,7.57199827]
[1739563176600,0.7633,2738.1,2737.4,0.8185]
[1739563176805,3.65216,2738.1,2738.0,35.0]
[1739563177257,3.65684,2738.4,2738.0,37.7002675]
[1739563177418,3.65684,2738.4,2738.0,2.7002675]
[1739563177604,3.65193,2738.3,2737.9,0.8185]
[1739563177807,3.65193,2738.3,2738.2,35.0]
[1739563179273,4.20193,2738.3,2738.2,35.0]
[1739563180556,4.96223,2738.3,2738.2,35.0]
[1739563182287,7.96223,2738.3,2738.2,35.0]
[1739563188247,7.96223,2738.3,2738.2,34.9]
[1739563194053,3.65329,2737.3,2737.1,0.824]
[1739563194355,3.65307,2737.5,2737.1,0.824]
[1739563194540,3.65319,2737.4,2737.2,35.0]
[1739563194920,3.65278,2737.7,2737.3,7.57708827]
[1739563195219,3.65245,2737.9,2737.5,0.824]
[1739563195752,3.65245,2737.9,2737.5,4.47695]
[1739563196142,0.7999,2738.3,2737.6,0.824]
[1739563196347,3.65203,2738.2,2737.6,0.824]
[1739563196650,3.65216,2738.1,2737.6,1.271695]
[1739563196953,3.65233,2738.0,2737.6,1.271695]
[1739563198051,3.65203,2738.2,2737.7,4.47662]
[1739563198253,3.652,2738.3,2737.8,0.824]
[1739563198442,3.65205,2738.2,2737.8,0.824]
[1739563199655,3.6519,2738.3,2737.8,0.824]
[1739563199851,3.65685,2738.4,2737.8,1.58164583]
[1739563200055,3.65685,2738.4,2737.9,0.824]
[1739563200350,3.65684,2738.4,2737.9,0.824]
[1739563200649,3.652,2738.3,2737.9,0.824]
[1739563201216,0.005,2738.4,2737.9,0.824]
[1739563201434,3.65203,2738.2,2737.9,0.824]
[1739563202050,3.65218,2738.1,2737.9,0.824]
[1739563202373,3.68980561,2738.0,2737.9,0.824]
[1739563202548,3.65247,2737.9,2737.6,0.824]
[1739563202747,3.6527,2737.7,2737.6,0.824]
[1739563203052,3.6527,2737.7,2737.2,0.824]
[1739563203053,3.65292,2737.6,2737.2,0.824]
[1739563203250,3.65305,2737.5,2737.2,0.824]
[1739563203466,3.65323,2737.3,2737.2,0.824]
[1739563203849,3.65305,2737.5,2737.2,0.824]
[1739563204372,9.04285,2737.6,2737.5,0.824]
[1739563204373,5.39,2737.6,2737.5,0.824]
[1739563204956,5.39,2737.6,2737.5,35.824]
[1739563205386,0.98040646,2738.2,2737.5,35.824]
[1739563205387,5.39,2738.0,2737.9,4.47643]
[1739563205563,3.6511,2738.9,2738.3,3.6519]
[1739563205763,3.65137,2738.7,2738.3,3.92386827]
[1739563205962,0.7999,2739.0,2738.3,39.6814581]
[1739563206161,3.65117,2738.9,2738.3,39.6814581]
[1739563206391,3.6515,2738.6,2738.3,39.6814581]
[1739563206578,3.65145,2738.7,2738.3,39.6814581]
[1739563206776,3.65144,2738.7,2738.3,39.6814581]
[1739563207080,3.65158,2738.6,2738.3,39.6814581]
[1739563207255,3.65144,2738.7,2738.3,39.6814581]